[Event "Early-Titled-Tuesday-Blitz-August-29-2023"]
[Site "Chess.com"]
[Date "2023.08.29"]
[Round "8"]
[White "Beca95"]
[Black "Kildepiotr"]
[Result "1-0"]
[WhiteElo "2956"]
[BlackElo "2666"]
[TimeControl "180+1"]
[EndTime "9:27:20 PDT"]
[Termination "Beca95 won by checkmate"]

1. a4 {[%clk 0:02:58.6]} 1... d5 {[%clk 0:02:57.1]} 2. h4 {[%clk 0:02:55.9]}
2... c5 {[%clk 0:02:56.8]} 3. Nc3 {[%clk 0:02:55.7]} 3... Nc6 {[%clk 0:02:55.6]}
4. d3 {[%clk 0:02:53.7]} 4... e5 {[%clk 0:02:51.3]} 5. e4 {[%clk 0:02:53.5]}
5... d4 {[%clk 0:02:51.7]} 6. Nd5 {[%clk 0:02:51]} 6... Be6 {[%clk 0:02:51.4]}
7. g3 {[%clk 0:02:47.3]} 7... Bxd5 {[%clk 0:02:50.4]} 8. exd5 {[%clk 0:02:47.8]}
8... Qxd5 {[%clk 0:02:50.9]} 9. Nf3 {[%clk 0:02:47.9]} 9... Nf6 {[%clk
0:02:36.6]} 10. Bg2 {[%clk 0:02:46.8]} 10... Qd7 {[%clk 0:02:36.7]} 11. O-O
{[%clk 0:02:43.9]} 11... Bd6 {[%clk 0:02:36.8]} 12. Bg5 {[%clk 0:02:42.1]} 12...
h6 {[%clk 0:02:33.3]} 13. Bxf6 {[%clk 0:02:41.8]} 13... gxf6 {[%clk 0:02:34.2]}
14. Nd2 {[%clk 0:02:41.6]} 14... f5 {[%clk 0:02:32.8]} 15. Qh5 {[%clk
0:02:40.5]} 15... Ne7 {[%clk 0:02:28.2]} 16. Rae1 {[%clk 0:02:37.3]} 16... O-O-O
{[%clk 0:02:23.5]} 17. Nc4 {[%clk 0:02:37]} 17... f6 {[%clk 0:02:21.9]} 18. Bh3
{[%clk 0:02:33.1]} 18... Kb8 {[%clk 0:02:14.9]} 19. b3 {[%clk 0:02:29.7]} 19...
Bc7 {[%clk 0:02:12.1]} 20. Kh2 {[%clk 0:02:29.3]} 20... Rdf8 {[%clk 0:02:07.1]}
21. Re2 {[%clk 0:02:28.6]} 21... Qe8 {[%clk 0:01:59.1]} 22. Qxe8+ {[%clk
0:02:27.3]} 22... Rxe8 {[%clk 0:01:58.7]} 23. h5 {[%clk 0:02:24.7]} 23... Rhg8
{[%clk 0:01:51.3]} 24. Rfe1 {[%clk 0:02:19.4]} 24... Rg5 {[%clk 0:01:42.7]} 25.
f4 {[%clk 0:02:17.8]} 25... Rxh5 {[%clk 0:01:43]} 26. fxe5 {[%clk 0:02:15.1]}
26... Nd5 {[%clk 0:01:36.9]} 27. exf6 {[%clk 0:02:03.3]} 27... Rxe2+ {[%clk
0:01:37.8]} 28. Rxe2 {[%clk 0:02:02.7]} 28... Nxf6 {[%clk 0:01:37.7]} 29. Re6
{[%clk 0:02:03.2]} 29... Ng4+ {[%clk 0:01:37.7]} 30. Kg2 {[%clk 0:02:02.8]}
30... b6 {[%clk 0:01:33.9]} 31. Bxg4 {[%clk 0:02:01.9]} 31... fxg4 {[%clk
0:01:33.8]} 32. Rg6 {[%clk 0:02:02.5]} 32... Rg5 {[%clk 0:01:25.4]} 33. Rxh6
{[%clk 0:01:58.3]} 33... Rg7 {[%clk 0:01:22.1]} 34. Nd2 {[%clk 0:01:56.7]} 34...
Kb7 {[%clk 0:01:19.4]} 35. Ne4 {[%clk 0:01:52.5]} 35... Rg8 {[%clk 0:01:00.5]}
36. Re6 {[%clk 0:01:46.5]} 36... Rg7 {[%clk 0:00:58.5]} 37. Rf6 {[%clk
0:01:43.4]} 37... Be5 {[%clk 0:00:52]} 38. Rf5 {[%clk 0:01:42.4]} 38... Bc7
{[%clk 0:00:51.9]} 39. Rh5 {[%clk 0:01:38.9]} 39... Ka6 {[%clk 0:00:49.2]} 40.
b4 {[%clk 0:01:32.1]} 40... cxb4 {[%clk 0:00:48.8]} 41. Rb5 {[%clk 0:01:32.2]}
41... Bb8 {[%clk 0:00:36.8]} 42. Rxb4 {[%clk 0:01:29.3]} 42... Rc7 {[%clk
0:00:36.9]} 43. Rb2 {[%clk 0:01:28.9]} 43... Re7 {[%clk 0:00:30.5]} 44. Ra2
{[%clk 0:00:52.1]} 44... Ka5 {[%clk 0:00:29.9]} 45. Kf2 {[%clk 0:00:52.1]} 45...
Rf7+ {[%clk 0:00:29.2]} 46. Ke2 {[%clk 0:00:50.2]} 46... Rf3 {[%clk 0:00:28.6]}
47. Nd2 {[%clk 0:00:50.7]} 47... Rxg3 {[%clk 0:00:26.7]} 48. Nc4+ {[%clk
0:00:51.2]} 48... Kb4 {[%clk 0:00:25.6]} 49. Rb2+ {[%clk 0:00:50.8]} 49... Kc3
{[%clk 0:00:22.8]} 50. a5 {[%clk 0:00:25.8]} 50... Rg2+ {[%clk 0:00:22.9]} 51.
Kd1 {[%clk 0:00:26.3]} 51... Rg1+ {[%clk 0:00:19]} 52. Ke2 {[%clk 0:00:26.7]}
52... Rg2+ {[%clk 0:00:19.1]} 53. Kd1 {[%clk 0:00:27.2]} 53... Bg3 {[%clk
0:00:14.6]} 54. Rb3# {[%clk 0:00:24.9]} 1-0

[Event "Early-Titled-Tuesday-Blitz-August-29-2023"]
[Site "Chess.com"]
[Date "2023.08.29"]
[Round "8"]
[White "GMG"]
[Black "Angry_Twin"]
[Result "1/2-1/2"]
[WhiteElo "2749"]
[BlackElo "2961"]
[TimeControl "180+1"]
[EndTime "9:27:23 PDT"]
[Termination "Game drawn by repetition"]

1. d4 {[%clk 0:02:58.2]} 1... Nf6 {[%clk 0:02:59.8]} 2. c4 {[%clk 0:02:57.5]}
2... e6 {[%clk 0:03:00]} 3. Nf3 {[%clk 0:02:58.1]} 3... d5 {[%clk 0:03:00.3]} 4.
Nc3 {[%clk 0:02:57.5]} 4... c6 {[%clk 0:03:00.8]} 5. g3 {[%clk 0:02:57.2]} 5...
Nbd7 {[%clk 0:02:59.6]} 6. Qd3 {[%clk 0:02:51.6]} 6... b6 {[%clk 0:02:50.8]} 7.
Bg2 {[%clk 0:02:50.2]} 7... Ba6 {[%clk 0:02:51.3]} 8. b3 {[%clk 0:02:50.2]} 8...
Rc8 {[%clk 0:02:51]} 9. O-O {[%clk 0:02:49]} 9... c5 {[%clk 0:02:51.3]} 10. Nb5
{[%clk 0:02:44.4]} 10... Bxb5 {[%clk 0:02:48.4]} 11. cxb5 {[%clk 0:02:44.5]}
11... Be7 {[%clk 0:02:48.6]} 12. Bb2 {[%clk 0:02:36.7]} 12... O-O {[%clk
0:02:33.7]} 13. Rac1 {[%clk 0:02:25.5]} 13... Qc7 {[%clk 0:02:33.5]} 14. Nd2
{[%clk 0:02:15.8]} 14... Rfd8 {[%clk 0:02:32.4]} 15. a4 {[%clk 0:02:13.1]} 15...
Qb8 {[%clk 0:02:31.7]} 16. e3 {[%clk 0:02:12.2]} 16... Rc7 {[%clk 0:02:24.7]}
17. Rc2 {[%clk 0:02:11.6]} 17... Rdc8 {[%clk 0:02:23.6]} 18. Rfc1 {[%clk
0:02:12.2]} 18... cxd4 {[%clk 0:02:23.8]} 19. exd4 {[%clk 0:02:06.3]} 19... Bb4
{[%clk 0:02:23.5]} 20. Nf1 {[%clk 0:01:57.3]} 20... Bd6 {[%clk 0:02:03.3]} 21.
Ne3 {[%clk 0:01:55.6]} 21... h6 {[%clk 0:02:03.2]} 22. f4 {[%clk 0:01:53]} 22...
g6 {[%clk 0:01:57.2]} 23. Bf3 {[%clk 0:01:43.8]} 23... h5 {[%clk 0:01:55.2]} 24.
Kg2 {[%clk 0:01:41.5]} 24... Qb7 {[%clk 0:01:49.9]} 25. Qe2 {[%clk 0:01:03.7]}
25... Bf8 {[%clk 0:01:25.6]} 26. Nc4 {[%clk 0:00:58.9]} 26... Ne4 {[%clk
0:01:17.1]} 27. Ne5 {[%clk 0:00:57.7]} 27... Nxe5 {[%clk 0:01:16.9]} 28. fxe5
{[%clk 0:00:57]} 28... Ng5 {[%clk 0:01:06]} 29. Qd3 {[%clk 0:00:37.6]} 29...
Nxf3 {[%clk 0:00:55]} 30. Kxf3 {[%clk 0:00:38.5]} 30... Bh6 {[%clk 0:00:54.8]}
31. Rxc7 {[%clk 0:00:37.6]} 31... Rxc7 {[%clk 0:00:55.7]} 32. Rc3 {[%clk
0:00:37.5]} 32... Qc8 {[%clk 0:00:49.8]} 33. Qc2 {[%clk 0:00:33.2]} 33... Rxc3+
{[%clk 0:00:49.4]} 34. Qxc3 {[%clk 0:00:34.1]} 34... Qxc3+ {[%clk 0:00:48]} 35.
Bxc3 {[%clk 0:00:35]} 35... Bf8 {[%clk 0:00:47.9]} 36. a5 {[%clk 0:00:33.2]}
36... Be7 {[%clk 0:00:45.8]} 37. a6 {[%clk 0:00:32.7]} 37... Kf8 {[%clk
0:00:33.7]} 38. Ba5 {[%clk 0:00:27.4]} 38... Bd8 {[%clk 0:00:32.8]} 39. Bb4+
{[%clk 0:00:27.5]} 39... Ke8 {[%clk 0:00:08.8]} 40. Bd6 {[%clk 0:00:25.2]} 40...
Kd7 {[%clk 0:00:08]} 41. Bb8 {[%clk 0:00:25.3]} 41... Kc8 {[%clk 0:00:07.8]} 42.
Bxa7 {[%clk 0:00:22]} 42... g5 {[%clk 0:00:08.2]} 43. h3 {[%clk 0:00:20.6]}
43... Bc7 {[%clk 0:00:05.8]} 44. g4 {[%clk 0:00:19.7]} 44... h4 {[%clk
0:00:05.8]} 45. Ke3 {[%clk 0:00:19.6]} 45... Bd8 {[%clk 0:00:06.2]} 46. Kd3
{[%clk 0:00:19.5]} 46... Bc7 {[%clk 0:00:06.7]} 47. Ke3 {[%clk 0:00:18.5]} 47...
Bd8 {[%clk 0:00:07]} 48. Kd3 {[%clk 0:00:17]} 48... Bc7 {[%clk 0:00:07.2]} 49.
Ke3 {[%clk 0:00:15.9]} 1/2-1/2

[Event "Early-Titled-Tuesday-Blitz-August-29-2023"]
[Site "Chess.com"]
[Date "2023.08.29"]
[Round "8"]
[White "GroovyKettle"]
[Black "crescentmoon2411"]
[Result "1/2-1/2"]
[WhiteElo "2912"]
[BlackElo "3023"]
[TimeControl "180+1"]
[EndTime "9:27:23 PDT"]
[Termination "Game drawn - insufficient material"]

1. e4 {[%clk 0:03:00.9]} 1... g6 {[%clk 0:02:56.6]} 2. d4 {[%clk 0:02:58.8]}
2... Bg7 {[%clk 0:02:56.7]} 3. Nf3 {[%clk 0:02:55.3]} 3... d6 {[%clk 0:02:56]}
4. Bc4 {[%clk 0:02:51]} 4... Nf6 {[%clk 0:02:53.8]} 5. Qe2 {[%clk 0:02:45.5]}
5... O-O {[%clk 0:02:48.4]} 6. O-O {[%clk 0:02:45.4]} 6... Nc6 {[%clk
0:02:26.5]} 7. e5 {[%clk 0:02:35.4]} 7... dxe5 {[%clk 0:00:59.9]} 8. dxe5 {[%clk
0:02:33.8]} 8... Nd5 {[%clk 0:01:00]} 9. Rd1 {[%clk 0:02:26.8]} 9... Be6 {[%clk
0:00:58.1]} 10. Ng5 {[%clk 0:01:53.7]} 10... Nf4 {[%clk 0:00:48.1]} 11. Qe1
{[%clk 0:01:12.1]} 11... Bxc4 {[%clk 0:00:39.1]} 12. Bxf4 {[%clk 0:00:57.6]}
12... Qc8 {[%clk 0:00:34.3]} 13. Qe4 {[%clk 0:00:49.2]} 13... Be6 {[%clk
0:00:31.8]} 14. Nxe6 {[%clk 0:00:45.7]} 14... Qxe6 {[%clk 0:00:32.7]} 15. Nc3
{[%clk 0:00:46]} 15... Bxe5 {[%clk 0:00:23.8]} 16. Bxe5 {[%clk 0:00:35.6]} 16...
Qxe5 {[%clk 0:00:24.7]} 17. Qxe5 {[%clk 0:00:33.4]} 17... Nxe5 {[%clk
0:00:25.6]} 18. Nd5 {[%clk 0:00:34]} 18... c6 {[%clk 0:00:25.1]} 19. Nxe7+
{[%clk 0:00:24.9]} 19... Kg7 {[%clk 0:00:24.9]} 20. f4 {[%clk 0:00:20.6]} 20...
Nc4 {[%clk 0:00:23.2]} 21. Rd7 {[%clk 0:00:21.1]} 21... Rab8 {[%clk 0:00:22.1]}
22. Re1 {[%clk 0:00:20.6]} 22... Rfd8 {[%clk 0:00:17.5]} 23. Rc7 {[%clk
0:00:18.9]} 23... Nd6 {[%clk 0:00:15.8]} 24. Rd1 {[%clk 0:00:12.1]} 24... Ne4
{[%clk 0:00:11.2]} 25. Rxd8 {[%clk 0:00:11.8]} 25... Rxd8 {[%clk 0:00:12.1]} 26.
Kf1 {[%clk 0:00:11.8]} 26... Nd6 {[%clk 0:00:08.9]} 27. c4 {[%clk 0:00:11.2]}
27... Nxc4 {[%clk 0:00:06.5]} 28. Rxb7 {[%clk 0:00:11.5]} 28... Rd1+ {[%clk
0:00:06.2]} 29. Kf2 {[%clk 0:00:10.8]} 29... Rd2+ {[%clk 0:00:06.4]} 30. Kf3
{[%clk 0:00:11.3]} 30... Rxb2 {[%clk 0:00:03.5]} 31. Rxb2 {[%clk 0:00:11.3]}
31... Nxb2 {[%clk 0:00:04.4]} 32. Nxc6 {[%clk 0:00:11.8]} 32... a6 {[%clk
0:00:05.1]} 33. Ke3 {[%clk 0:00:11.6]} 33... Kf6 {[%clk 0:00:05.4]} 34. Kd4
{[%clk 0:00:11.9]} 34... Kf5 {[%clk 0:00:05.5]} 35. g3 {[%clk 0:00:11.2]} 35...
Kg4 {[%clk 0:00:06]} 36. Ne5+ {[%clk 0:00:11.6]} 36... Kh3 {[%clk 0:00:06.6]}
37. Nxf7 {[%clk 0:00:11.6]} 37... Kxh2 {[%clk 0:00:06.6]} 38. g4 {[%clk
0:00:12.2]} 38... Kg3 {[%clk 0:00:06.9]} 39. f5 {[%clk 0:00:11.2]} 39... Kxg4
{[%clk 0:00:07.2]} 40. fxg6 {[%clk 0:00:10.9]} 40... hxg6 {[%clk 0:00:08.1]} 41.
Kc5 {[%clk 0:00:10.4]} 41... Kf5 {[%clk 0:00:07.7]} 42. Kb6 {[%clk 0:00:08.6]}
42... Nc4+ {[%clk 0:00:06.8]} 43. Kxa6 {[%clk 0:00:08.8]} 43... g5 {[%clk
0:00:06.7]} 44. Kb5 {[%clk 0:00:08.3]} 44... Nb2 {[%clk 0:00:03.7]} 45. Nxg5
{[%clk 0:00:07.6]} 45... Kxg5 {[%clk 0:00:04.1]} 46. a4 {[%clk 0:00:07.6]} 46...
Nxa4 {[%clk 0:00:04]} 1/2-1/2

[Event "Early-Titled-Tuesday-Blitz-August-29-2023"]
[Site "Chess.com"]
[Date "2023.08.29"]
[Round "8"]
[White "smilingice"]
[Black "cool64chess"]
[Result "0-1"]
[WhiteElo "2401"]
[BlackElo "2526"]
[TimeControl "180+1"]
[EndTime "9:27:23 PDT"]
[Termination "cool64chess won by resignation"]

1. e4 {[%clk 0:02:54.8]} 1... e6 {[%clk 0:02:58.1]} 2. d4 {[%clk 0:02:53.7]}
2... d5 {[%clk 0:02:57.5]} 3. e5 {[%clk 0:02:53.4]} 3... c5 {[%clk 0:02:47.1]}
4. c3 {[%clk 0:02:51.3]} 4... Nc6 {[%clk 0:02:47]} 5. Nf3 {[%clk 0:02:50.6]}
5... Nge7 {[%clk 0:02:47.4]} 6. a3 {[%clk 0:02:43.2]} 6... a5 {[%clk 0:02:46]}
7. Bd3 {[%clk 0:02:42.4]} 7... Nf5 {[%clk 0:02:45.3]} 8. Bxf5 {[%clk 0:02:22.2]}
8... exf5 {[%clk 0:02:46.2]} 9. O-O {[%clk 0:02:22.4]} 9... Be6 {[%clk
0:02:40.7]} 10. Nbd2 {[%clk 0:02:00]} 10... c4 {[%clk 0:02:37.9]} 11. Re1 {[%clk
0:01:59]} 11... Be7 {[%clk 0:02:33.3]} 12. Nf1 {[%clk 0:01:58.5]} 12... O-O
{[%clk 0:02:31.7]} 13. g3 {[%clk 0:01:53.3]} 13... b5 {[%clk 0:02:31.1]} 14. h4
{[%clk 0:01:52.7]} 14... b4 {[%clk 0:02:30.5]} 15. Bg5 {[%clk 0:01:52.4]} 15...
bxa3 {[%clk 0:02:25.8]} 16. bxa3 {[%clk 0:01:49.3]} 16... Rb8 {[%clk 0:02:23.8]}
17. Bxe7 {[%clk 0:01:44.2]} 17... Qxe7 {[%clk 0:02:21.3]} 18. Ne3 {[%clk
0:01:33.6]} 18... Rb3 {[%clk 0:02:17.8]} 19. Qc2 {[%clk 0:01:18.4]} 19... g6
{[%clk 0:02:07.9]} 20. a4 {[%clk 0:01:03]} 20... Rfb8 {[%clk 0:02:06.4]} 21. Ng2
{[%clk 0:01:00.7]} 21... Rb2 {[%clk 0:02:03.7]} 22. Qc1 {[%clk 0:01:01]} 22...
Qf8 {[%clk 0:01:34.1]} 23. Nf4 {[%clk 0:00:59.1]} 23... Nd8 {[%clk 0:01:31.7]}
24. Ng5 {[%clk 0:00:58.8]} 24... Kg7 {[%clk 0:01:11.1]} 25. h5 {[%clk
0:00:58.9]} 25... Qe7 {[%clk 0:01:01.8]} 26. Ngxe6+ {[%clk 0:00:45.9]} 26...
fxe6 {[%clk 0:00:59.5]} 27. hxg6 {[%clk 0:00:42.3]} 27... hxg6 {[%clk
0:00:58.8]} 28. Kg2 {[%clk 0:00:43]} 28... Nf7 {[%clk 0:00:56.8]} 29. Rh1 {[%clk
0:00:42.5]} 29... Ng5 {[%clk 0:00:45]} 30. Rh2 {[%clk 0:00:37.8]} 30... Ne4
{[%clk 0:00:35.4]} 31. Nxg6 {[%clk 0:00:32]} 31... Rxf2+ {[%clk 0:00:07.3]} 32.
Kg1 {[%clk 0:00:29.3]} 32... Rxh2 {[%clk 0:00:07.3]} 33. Nxe7 {[%clk 0:00:28.5]}
33... Rbb2 {[%clk 0:00:07.9]} 34. Qxb2 {[%clk 0:00:21.9]} 34... Rxb2 {[%clk
0:00:06.8]} 35. Nc6 {[%clk 0:00:21.8]} 35... Nxc3 {[%clk 0:00:05.7]} 36. Nxa5
{[%clk 0:00:21.7]} 36... Ne2+ {[%clk 0:00:06.3]} 37. Kf2 {[%clk 0:00:20.3]}
37... Nxd4+ {[%clk 0:00:06.9]} 38. Ke3 {[%clk 0:00:20.1]} 38... Nc2+ {[%clk
0:00:06.6]} 39. Kd2 {[%clk 0:00:20.5]} 39... Nxa1+ {[%clk 0:00:07.2]} 40. Kc3
{[%clk 0:00:20.7]} 40... Rb1 {[%clk 0:00:06.4]} 41. Nc6 {[%clk 0:00:20.7]} 41...
Nb3 {[%clk 0:00:06.3]} 42. a5 {[%clk 0:00:20.9]} 42... Ra1 {[%clk 0:00:06.4]}
43. Kb4 {[%clk 0:00:21.2]} 43... Nxa5 {[%clk 0:00:04.9]} 44. Nxa5 {[%clk
0:00:20.5]} 44... Rxa5 {[%clk 0:00:05.5]} 45. Kxa5 {[%clk 0:00:20]} 45... c3
{[%clk 0:00:06.2]} 0-1

[Event "Early-Titled-Tuesday-Blitz-August-29-2023"]
[Site "Chess.com"]
[Date "2023.08.29"]
[Round "8"]
[White "MatthewG-p4p"]
[Black "SAInt_666"]
[Result "1/2-1/2"]
[WhiteElo "2846"]
[BlackElo "2678"]
[TimeControl "180+1"]
[EndTime "9:27:24 PDT"]
[Termination "Game drawn by repetition"]

1. e4 {[%clk 0:03:00.9]} 1... c6 {[%clk 0:02:51.3]} 2. d4 {[%clk 0:03:00.5]}
2... d5 {[%clk 0:02:51.8]} 3. exd5 {[%clk 0:03:01.4]} 3... cxd5 {[%clk
0:02:52.3]} 4. Bd3 {[%clk 0:03:00.7]} 4... Nf6 {[%clk 0:02:51.5]} 5. h3 {[%clk
0:02:59.9]} 5... g6 {[%clk 0:02:50.1]} 6. Nf3 {[%clk 0:02:59.7]} 6... Bf5 {[%clk
0:02:49.9]} 7. Be2 {[%clk 0:02:59.3]} 7... Nc6 {[%clk 0:02:47.6]} 8. c3 {[%clk
0:02:58.5]} 8... h5 {[%clk 0:02:42.1]} 9. O-O {[%clk 0:02:56.6]} 9... e6 {[%clk
0:02:41.4]} 10. Re1 {[%clk 0:02:48.7]} 10... a6 {[%clk 0:02:39.4]} 11. Bf4
{[%clk 0:02:39.5]} 11... Bd6 {[%clk 0:02:39.2]} 12. Bxd6 {[%clk 0:02:39.1]}
12... Qxd6 {[%clk 0:02:40.1]} 13. Nbd2 {[%clk 0:02:39.6]} 13... Kf8 {[%clk
0:02:39]} 14. Ne5 {[%clk 0:02:21.5]} 14... Nxe5 {[%clk 0:02:30.4]} 15. dxe5
{[%clk 0:02:22.4]} 15... Qxe5 {[%clk 0:02:29.3]} 16. Bxa6 {[%clk 0:02:22.9]}
16... Qc7 {[%clk 0:02:24.8]} 17. Bf1 {[%clk 0:02:21.6]} 17... Kg7 {[%clk
0:02:08.8]} 18. Nf3 {[%clk 0:02:21]} 18... Bg4 {[%clk 0:01:34.9]} 19. Qd4 {[%clk
0:01:55.4]} 19... Bxf3 {[%clk 0:01:31.5]} 20. gxf3 {[%clk 0:01:55.4]} 20... h4
{[%clk 0:01:27.2]} 21. a4 {[%clk 0:01:34.6]} 21... Rh5 {[%clk 0:01:24.4]} 22. f4
{[%clk 0:01:28.8]} 22... Rf5 {[%clk 0:00:56]} 23. Re5 {[%clk 0:01:28.3]} 23...
Rh8 {[%clk 0:00:47.3]} 24. Rxf5 {[%clk 0:01:17.8]} 24... gxf5 {[%clk 0:00:48.2]}
25. Kh1 {[%clk 0:01:14.8]} 25... Rh6 {[%clk 0:00:47.7]} 26. Be2 {[%clk
0:01:06.7]} 26... Rg6 {[%clk 0:00:46.3]} 27. a5 {[%clk 0:01:05.1]} 27... Kh7
{[%clk 0:00:42]} 28. Bf3 {[%clk 0:00:46.4]} 28... Ne4 {[%clk 0:00:31.6]} 29. Qe3
{[%clk 0:00:46.3]} 29... e5 {[%clk 0:00:18.2]} 30. fxe5 {[%clk 0:00:42.8]} 30...
Qxe5 {[%clk 0:00:19.1]} 31. Bxe4 {[%clk 0:00:20]} 31... fxe4 {[%clk 0:00:17.4]}
32. Rg1 {[%clk 0:00:20.5]} 32... f5 {[%clk 0:00:16.8]} 33. Rxg6 {[%clk 0:00:20]}
33... Kxg6 {[%clk 0:00:17.7]} 34. Qb6+ {[%clk 0:00:20.6]} 34... Kg5 {[%clk
0:00:16.6]} 35. Qxb7 {[%clk 0:00:20.2]} 35... e3 {[%clk 0:00:13.6]} 36. fxe3
{[%clk 0:00:16.1]} 36... Qxe3 {[%clk 0:00:11.3]} 37. Qg7+ {[%clk 0:00:15.8]}
37... Kh5 {[%clk 0:00:09.9]} 38. Qh7+ {[%clk 0:00:12.5]} 38... Kg5 {[%clk
0:00:10.1]} 39. Qg7+ {[%clk 0:00:12.9]} 39... Kh5 {[%clk 0:00:08.2]} 40. Qf7+
{[%clk 0:00:13.5]} 40... Kg5 {[%clk 0:00:08.2]} 41. Qxd5 {[%clk 0:00:13.7]}
41... Qe1+ {[%clk 0:00:06.8]} 42. Kh2 {[%clk 0:00:14.1]} 42... Qg3+ {[%clk
0:00:07]} 43. Kh1 {[%clk 0:00:14.8]} 43... Qe1+ {[%clk 0:00:07.3]} 44. Kh2
{[%clk 0:00:14.5]} 44... Qg3+ {[%clk 0:00:07.4]} 45. Kh1 {[%clk 0:00:14.4]}
45... Qe1+ {[%clk 0:00:07.6]} 1/2-1/2

[Event "Early-Titled-Tuesday-Blitz-August-29-2023"]
[Site "Chess.com"]
[Date "2023.08.29"]
[Round "8"]
[White "HElissalt"]
[Black "campochess"]
[Result "0-1"]
[WhiteElo "2351"]
[BlackElo "2213"]
[TimeControl "180+1"]
[EndTime "9:27:25 PDT"]
[Termination "campochess won on time"]

1. d4 {[%clk 0:03:00.9]} 1... Nf6 {[%clk 0:02:53]} 2. c4 {[%clk 0:02:59.9]} 2...
g6 {[%clk 0:02:51.4]} 3. Nc3 {[%clk 0:02:59.3]} 3... d5 {[%clk 0:02:51.4]} 4.
cxd5 {[%clk 0:02:58.6]} 4... Nxd5 {[%clk 0:02:51.4]} 5. Bd2 {[%clk 0:02:59.1]}
5... Nb6 {[%clk 0:02:48.7]} 6. Nf3 {[%clk 0:02:42.5]} 6... Bg7 {[%clk
0:02:48.1]} 7. Bf4 {[%clk 0:02:33.4]} 7... O-O {[%clk 0:02:39.6]} 8. e3 {[%clk
0:02:32.6]} 8... c6 {[%clk 0:02:38.5]} 9. Be2 {[%clk 0:02:31.2]} 9... N8d7
{[%clk 0:02:38.4]} 10. O-O {[%clk 0:02:30.4]} 10... Re8 {[%clk 0:02:37.8]} 11.
Rc1 {[%clk 0:02:22.8]} 11... Nf8 {[%clk 0:02:32.8]} 12. h3 {[%clk 0:02:17.5]}
12... Bf5 {[%clk 0:02:32.2]} 13. Ne5 {[%clk 0:02:10.4]} 13... Nfd7 {[%clk
0:02:19.3]} 14. Nf3 {[%clk 0:01:47.2]} 14... Nf6 {[%clk 0:02:18.8]} 15. Qb3
{[%clk 0:01:41]} 15... Ne4 {[%clk 0:02:17.6]} 16. Rfd1 {[%clk 0:01:34.3]} 16...
Nd6 {[%clk 0:02:17.2]} 17. Be5 {[%clk 0:01:31.4]} 17... Be6 {[%clk 0:01:54.9]}
18. Qc2 {[%clk 0:01:25.2]} 18... Nf5 {[%clk 0:01:53.6]} 19. Bxg7 {[%clk
0:01:23.8]} 19... Nxg7 {[%clk 0:01:53.2]} 20. Ne5 {[%clk 0:01:20.9]} 20... Rc8
{[%clk 0:01:50.7]} 21. b4 {[%clk 0:01:19]} 21... Nf5 {[%clk 0:01:46.4]} 22. Qb2
{[%clk 0:01:18.3]} 22... Nd6 {[%clk 0:01:44.7]} 23. a4 {[%clk 0:01:12.9]} 23...
f6 {[%clk 0:01:44.3]} 24. Nd3 {[%clk 0:01:11.3]} 24... Nbc4 {[%clk 0:01:40.7]}
25. Qa1 {[%clk 0:01:10]} 25... Bf7 {[%clk 0:01:39.8]} 26. Nc5 {[%clk 0:01:06.5]}
26... b6 {[%clk 0:01:36.2]} 27. Na6 {[%clk 0:01:02.4]} 27... Qd7 {[%clk
0:01:28.9]} 28. d5 {[%clk 0:00:51.6]} 28... Qb7 {[%clk 0:01:19.5]} 29. dxc6
{[%clk 0:00:36.9]} 29... Rxc6 {[%clk 0:01:12.3]} 30. b5 {[%clk 0:00:35.3]} 30...
Rcc8 {[%clk 0:01:12.1]} 31. Nb4 {[%clk 0:00:33.2]} 31... Red8 {[%clk 0:01:03.8]}
32. Nc6 {[%clk 0:00:31.6]} 32... Be8 {[%clk 0:00:57.4]} 33. Nxd8 {[%clk
0:00:29.3]} 33... Rxd8 {[%clk 0:00:50.8]} 34. Nd5 {[%clk 0:00:28.3]} 34... Ne5
{[%clk 0:00:47.3]} 35. Nb4 {[%clk 0:00:26.8]} 35... Rc8 {[%clk 0:00:42.5]} 36.
Rxc8 {[%clk 0:00:24.9]} 36... Qxc8 {[%clk 0:00:42.4]} 37. Rc1 {[%clk 0:00:24.1]}
37... Qf5 {[%clk 0:00:39.9]} 38. Qd4 {[%clk 0:00:23.2]} 38... Kg7 {[%clk
0:00:36.7]} 39. Rc7 {[%clk 0:00:22.1]} 39... Qe6 {[%clk 0:00:34.2]} 40. Nd5
{[%clk 0:00:19.8]} 40... Nf5 {[%clk 0:00:32.3]} 41. Qd1 {[%clk 0:00:15]} 41...
Qd6 {[%clk 0:00:31.6]} 42. Bg4 {[%clk 0:00:13]} 42... Bf7 {[%clk 0:00:25.4]} 43.
Bxf5 {[%clk 0:00:12.7]} 43... Bxd5 {[%clk 0:00:24]} 44. Rc1 {[%clk 0:00:07.1]}
44... gxf5 {[%clk 0:00:23.1]} 45. Rc2 {[%clk 0:00:06.6]} 45... Qe6 {[%clk
0:00:21.8]} 46. Rd2 {[%clk 0:00:06.5]} 46... Bb3 {[%clk 0:00:20.3]} 47. Qc1
{[%clk 0:00:05.2]} 47... Bxa4 {[%clk 0:00:20.3]} 48. Qc7 {[%clk 0:00:04]} 48...
Kg6 {[%clk 0:00:20]} 49. Qxa7 {[%clk 0:00:03.8]} 49... Bxb5 {[%clk 0:00:19.3]}
50. Qb8 {[%clk 0:00:04.1]} 50... Nc4 {[%clk 0:00:18]} 0-1